[Event "*** SCC Grand Prix: Titled Tuesday Blitz"]
[Site "Chess.com"]
[Date "2020.09.08"]
[Round "8"]
[White "Kaslask"]
[Black "Lion-Al-Messi"]
[Result "1-0"]
[WhiteElo "2306"]
[BlackElo "2516"]
[TimeControl "180+1"]
[EndTime "11:34:18 PDT"]
[Termination "Kaslask won by resignation"]

1. d4 {[%clk 0:03:00.9]} 1... b6 {[%clk 0:03:00.5]} 2. Nf3 {[%clk 0:02:58.6]}
2... Bb7 {[%clk 0:03:01.4]} 3. g3 {[%clk 0:02:58.5]} 3... Nf6 {[%clk 0:03:01.9]}
4. Bg2 {[%clk 0:02:58]} 4... e6 {[%clk 0:03:02.4]} 5. O-O {[%clk 0:02:56.8]}
5... Be7 {[%clk 0:03:02.7]} 6. b3 {[%clk 0:02:50]} 6... O-O {[%clk 0:03:02.7]}
7. Bb2 {[%clk 0:02:49.8]} 7... d6 {[%clk 0:03:02.9]} 8. Nbd2 {[%clk 0:02:48]}
8... Nbd7 {[%clk 0:03:03.1]} 9. Re1 {[%clk 0:02:46.7]} 9... Ne4 {[%clk
0:03:03.1]} 10. Nxe4 {[%clk 0:02:43.3]} 10... Bxe4 {[%clk 0:03:04]} 11. Bh3
{[%clk 0:02:41.1]} 11... f5 {[%clk 0:02:54.2]} 12. Nd2 {[%clk 0:02:38.3]} 12...
Bb7 {[%clk 0:02:51.7]} 13. e4 {[%clk 0:02:37.5]} 13... Nf6 {[%clk 0:02:50.6]}
14. exf5 {[%clk 0:02:34.6]} 14... exf5 {[%clk 0:02:50.4]} 15. Bxf5 {[%clk
0:02:34]} 15... Kh8 {[%clk 0:02:46.5]} 16. c4 {[%clk 0:02:28.7]} 16... d5 {[%clk
0:02:44.3]} 17. Bh3 {[%clk 0:02:17.1]} 17... dxc4 {[%clk 0:02:42.3]} 18. Nxc4
{[%clk 0:02:11.6]} 18... Qd5 {[%clk 0:02:39.5]} 19. f3 {[%clk 0:02:02.2]} 19...
Bb4 {[%clk 0:02:34.8]} 20. Rf1 {[%clk 0:01:54.2]} 20... Rae8 {[%clk 0:02:28]}
21. Ne5 {[%clk 0:01:52.1]} 21... Nh5 {[%clk 0:02:25.2]} 22. Bg2 {[%clk 0:01:48]}
22... Bd6 {[%clk 0:02:13.9]} 23. Rf2 {[%clk 0:01:45.9]} 23... c5 {[%clk
0:02:13.6]} 24. f4 {[%clk 0:01:44.9]} 24... Nxf4 {[%clk 0:01:59.9]} 25. gxf4
{[%clk 0:01:35]} 25... Qe6 {[%clk 0:01:56.8]} 26. Bxb7 {[%clk 0:01:33.5]} 26...
cxd4 {[%clk 0:01:51.1]} 27. Bxd4 {[%clk 0:01:28]} 27... Qh6 {[%clk 0:01:50.1]}
28. Bg2 {[%clk 0:01:22.5]} 28... Rxf4 {[%clk 0:01:46.2]} 29. Rxf4 {[%clk
0:01:21.6]} 29... Qxf4 {[%clk 0:01:45.7]} 30. Nf3 {[%clk 0:01:20.9]} 30... Bb8
{[%clk 0:01:30.7]} 31. Qd2 {[%clk 0:01:19.6]} 31... Qd6 {[%clk 0:01:29]} 32. Qg5
{[%clk 0:01:17.6]} 32... Qd7 {[%clk 0:01:20.3]} 33. Rd1 {[%clk 0:01:15.2]} 33...
Re2 {[%clk 0:01:15.1]} 34. Bxg7+ {[%clk 0:01:09.6]} 1-0

[Event "*** SCC Grand Prix: Titled Tuesday Blitz"]
[Site "Chess.com"]
[Date "2020.09.08"]
[Round "8"]
[White "Susal_De_Silva"]
[Black "francyIM"]
[Result "0-1"]
[WhiteElo "2519"]
[BlackElo "2716"]
[TimeControl "180+1"]
[EndTime "11:34:20 PDT"]
[Termination "francyIM won by resignation"]

1. e4 {[%clk 0:03:00.9]} 1... e5 {[%clk 0:02:58.2]} 2. Nf3 {[%clk 0:03:01.1]}
2... Nc6 {[%clk 0:02:58.1]} 3. Bc4 {[%clk 0:03:00.8]} 3... Bc5 {[%clk
0:02:57.6]} 4. d3 {[%clk 0:03:00.7]} 4... Nf6 {[%clk 0:02:57.6]} 5. O-O {[%clk
0:03:01]} 5... a6 {[%clk 0:02:57.2]} 6. c3 {[%clk 0:03:01.2]} 6... Ba7 {[%clk
0:02:57.4]} 7. Bb3 {[%clk 0:03:01.6]} 7... d6 {[%clk 0:02:53.2]} 8. h3 {[%clk
0:03:01.3]} 8... h6 {[%clk 0:02:51.4]} 9. Re1 {[%clk 0:03:01.7]} 9... g5 {[%clk
0:02:43.3]} 10. d4 {[%clk 0:02:39.1]} 10... g4 {[%clk 0:02:40.1]} 11. dxe5
{[%clk 0:02:31]} 11... gxf3 {[%clk 0:02:35.7]} 12. exf6 {[%clk 0:02:29.6]} 12...
Ne5 {[%clk 0:02:34.2]} 13. Bf4 {[%clk 0:02:22]} 13... Qxf6 {[%clk 0:02:30.4]}
14. Bxe5 {[%clk 0:02:20.8]} 14... dxe5 {[%clk 0:02:30.5]} 15. Qxf3 {[%clk
0:02:19.4]} 15... Qxf3 {[%clk 0:02:30.2]} 16. gxf3 {[%clk 0:02:20.3]} 16... Rg8+
{[%clk 0:02:29.1]} 17. Kh2 {[%clk 0:01:35.1]} 17... Bxf2 {[%clk 0:02:27.4]} 18.
Re2 {[%clk 0:01:35.4]} 18... Bg3+ {[%clk 0:02:26.7]} 19. Kh1 {[%clk 0:01:35.8]}
19... Bxh3 {[%clk 0:02:24.5]} 20. Nd2 {[%clk 0:01:35.3]} 20... Ke7 {[%clk
0:02:23.3]} 21. Nc4 {[%clk 0:01:33.1]} 21... Rg5 {[%clk 0:02:22]} 22. Ne3 {[%clk
0:01:33.2]} 22... Rh5 {[%clk 0:02:18.7]} 23. Kg1 {[%clk 0:01:28.2]} 23... Rg8
{[%clk 0:02:17.7]} 24. Ng2 {[%clk 0:01:26.2]} 24... Rhg5 {[%clk 0:01:49.2]} 25.
Kh1 {[%clk 0:01:14.1]} 25... R8g6 {[%clk 0:01:43.9]} 26. Rd1 {[%clk 0:01:09.2]}
26... Rh5 {[%clk 0:01:42.5]} 27. Kg1 {[%clk 0:01:08.6]} 27... Bf4 {[%clk
0:01:41.2]} 28. Bc2 {[%clk 0:00:47.1]} 28... Rhg5 {[%clk 0:01:38.5]} 0-1

[Event "*** SCC Grand Prix: Titled Tuesday Blitz"]
[Site "Chess.com"]
[Date "2020.09.08"]
[Round "8"]
[White "Happy1712Drummer"]
[Black "Matols"]
[Result "1-0"]
[WhiteElo "2412"]
[BlackElo "2268"]
[TimeControl "180+1"]
[EndTime "11:34:32 PDT"]
[Termination "Happy1712Drummer won by resignation"]

1. d4 {[%clk 0:02:56.6]} 1... Nf6 {[%clk 0:02:59.3]} 2. c4 {[%clk 0:02:49.5]}
2... e6 {[%clk 0:02:58.9]} 3. g3 {[%clk 0:02:44.3]} 3... d5 {[%clk 0:02:55.7]}
4. Bg2 {[%clk 0:02:39.9]} 4... Bb4+ {[%clk 0:02:53.1]} 5. Nd2 {[%clk 0:02:33.9]}
5... O-O {[%clk 0:02:49.7]} 6. Nf3 {[%clk 0:02:30.7]} 6... Nc6 {[%clk
0:02:29.5]} 7. O-O {[%clk 0:02:19.2]} 7... Re8 {[%clk 0:02:04.2]} 8. Qc2 {[%clk
0:02:12.7]} 8... dxc4 {[%clk 0:01:37.6]} 9. Qxc4 {[%clk 0:02:08]} 9... Be7
{[%clk 0:01:14.3]} 10. b3 {[%clk 0:01:56]} 10... Bd7 {[%clk 0:01:02.1]} 11. Bb2
{[%clk 0:01:54.8]} 11... Na5 {[%clk 0:00:56.7]} 12. Qc3 {[%clk 0:01:53]} 12...
b6 {[%clk 0:00:50.5]} 13. Ne5 {[%clk 0:01:49.2]} 13... Nd5 {[%clk 0:00:41.8]}
14. Qf3 {[%clk 0:01:34.2]} 14... c5 {[%clk 0:00:36.6]} 15. Qxf7+ {[%clk
0:01:31.2]} 15... Kh8 {[%clk 0:00:35.6]} 16. Qh5 {[%clk 0:01:27.4]} 16... Rf8
{[%clk 0:00:24.3]} 17. dxc5 {[%clk 0:01:24.2]} 17... Bxc5 {[%clk 0:00:21.2]} 18.
Nf7+ {[%clk 0:01:18.6]} 18... Rxf7 {[%clk 0:00:20.3]} 19. Qxf7 {[%clk
0:01:19.5]} 1-0

[Event "*** SCC Grand Prix: Titled Tuesday Blitz"]
[Site "Chess.com"]
[Date "2020.09.08"]
[Round "8"]
[White "Mr_Sinigami"]
[Black "Gloomy_Wanderer"]
[Result "0-1"]
[WhiteElo "2560"]
[BlackElo "2746"]
[TimeControl "180+1"]
[EndTime "11:34:38 PDT"]
[Termination "Gloomy_Wanderer won by resignation"]

1. d4 {[%clk 0:03:00.9]} 1... Nf6 {[%clk 0:02:59.8]} 2. Nf3 {[%clk 0:03:00.8]}
2... e6 {[%clk 0:02:59.9]} 3. Bf4 {[%clk 0:03:01]} 3... b6 {[%clk 0:02:59.5]} 4.
e3 {[%clk 0:03:00.2]} 4... Be7 {[%clk 0:02:59.9]} 5. h3 {[%clk 0:02:59.6]} 5...
O-O {[%clk 0:03:00]} 6. Be2 {[%clk 0:02:59.8]} 6... c5 {[%clk 0:03:00.2]} 7. c3
{[%clk 0:02:58.8]} 7... d6 {[%clk 0:03:00.2]} 8. O-O {[%clk 0:02:58.1]} 8...
cxd4 {[%clk 0:03:00.1]} 9. exd4 {[%clk 0:02:57.4]} 9... Ba6 {[%clk 0:03:00]} 10.
Bxa6 {[%clk 0:02:52.5]} 10... Nxa6 {[%clk 0:03:00.9]} 11. Re1 {[%clk 0:02:51.5]}
11... h6 {[%clk 0:02:59.1]} 12. a4 {[%clk 0:02:49]} 12... Nc7 {[%clk 0:02:59.2]}
13. Nbd2 {[%clk 0:02:38.3]} 13... Qd7 {[%clk 0:02:58.8]} 14. Bh2 {[%clk
0:02:33.4]} 14... Qc6 {[%clk 0:02:58.5]} 15. Nb3 {[%clk 0:02:25]} 15... a6
{[%clk 0:02:56.9]} 16. Nc1 {[%clk 0:02:24.2]} 16... b5 {[%clk 0:02:55.5]} 17.
Nd3 {[%clk 0:02:21.4]} 17... Ncd5 {[%clk 0:02:55.3]} 18. Nd2 {[%clk 0:02:01.4]}
18... Rfc8 {[%clk 0:02:49.7]} 19. axb5 {[%clk 0:01:55.4]} 19... axb5 {[%clk
0:02:49.7]} 20. Qb3 {[%clk 0:01:55.3]} 20... Nb6 {[%clk 0:02:44.5]} 21. Nb4
{[%clk 0:01:42.6]} 21... Qd7 {[%clk 0:02:44.5]} 22. Bg3 {[%clk 0:01:14.8]} 22...
Ra4 {[%clk 0:02:40.3]} 23. Rxa4 {[%clk 0:01:11.1]} 23... bxa4 {[%clk 0:02:40.5]}
24. Qa2 {[%clk 0:01:06.4]} 24... d5 {[%clk 0:02:40.3]} 25. Ra1 {[%clk
0:00:53.5]} 25... Bxb4 {[%clk 0:02:36.2]} 26. cxb4 {[%clk 0:00:51.9]} 26... Qb5
{[%clk 0:02:37.1]} 27. Bd6 {[%clk 0:00:46.8]} 27... Rc2 {[%clk 0:02:34.7]} 28.
Nf3 {[%clk 0:00:38.9]} 28... Ne4 {[%clk 0:02:29]} 29. Bc5 {[%clk 0:00:36.1]}
29... Rxf2 {[%clk 0:02:24.9]} 30. Bxb6 {[%clk 0:00:27.3]} 30... Rxg2+ {[%clk
0:01:40.7]} 31. Kxg2 {[%clk 0:00:25.1]} 31... Qe2+ {[%clk 0:01:39.8]} 0-1

[Event "*** SCC Grand Prix: Titled Tuesday Blitz"]
[Site "Chess.com"]
[Date "2020.09.08"]
[Round "8"]
[White "daro94"]
[Black "sergiochess83"]
[Result "1-0"]
[WhiteElo "2973"]
[BlackElo "2833"]
[TimeControl "180+1"]
[EndTime "11:34:41 PDT"]
[Termination "daro94 won by resignation"]

1. Nf3 {[%clk 0:02:58.6]} 1... d5 {[%clk 0:02:58.9]} 2. b3 {[%clk 0:02:57.6]}
2... c5 {[%clk 0:02:50.7]} 3. e3 {[%clk 0:02:56.3]} 3... Nc6 {[%clk 0:02:43.8]}
4. Bb5 {[%clk 0:02:55.5]} 4... Bd7 {[%clk 0:02:43.9]} 5. Bb2 {[%clk 0:02:52.1]}
5... e6 {[%clk 0:02:42.5]} 6. O-O {[%clk 0:02:49.8]} 6... Nge7 {[%clk
0:02:41.5]} 7. d4 {[%clk 0:02:46.5]} 7... a6 {[%clk 0:02:39.1]} 8. Bd3 {[%clk
0:02:44.9]} 8... cxd4 {[%clk 0:02:33]} 9. exd4 {[%clk 0:02:45.1]} 9... Ng6
{[%clk 0:02:29.1]} 10. Re1 {[%clk 0:02:44.1]} 10... Bd6 {[%clk 0:02:27.3]} 11.
c4 {[%clk 0:02:41]} 11... O-O {[%clk 0:02:27.3]} 12. Nc3 {[%clk 0:02:40.7]}
12... Nce7 {[%clk 0:02:03.4]} 13. g3 {[%clk 0:02:35.8]} 13... dxc4 {[%clk
0:01:19.5]} 14. bxc4 {[%clk 0:02:35.6]} 14... Bc6 {[%clk 0:01:19.2]} 15. Ne4
{[%clk 0:02:27.1]} 15... Bb4 {[%clk 0:01:14.8]} 16. Rf1 {[%clk 0:02:21.8]} 16...
b5 {[%clk 0:01:09.9]} 17. c5 {[%clk 0:02:13.8]} 17... Ba5 {[%clk 0:01:07.5]} 18.
Qe2 {[%clk 0:02:11.8]} 18... Bc7 {[%clk 0:01:05.1]} 19. Rad1 {[%clk 0:02:11.4]}
19... Nd5 {[%clk 0:01:03.3]} 20. Ne5 {[%clk 0:02:08.7]} 20... Bxe5 {[%clk
0:00:52]} 21. dxe5 {[%clk 0:02:09.6]} 21... Qa5 {[%clk 0:00:52.4]} 22. Qh5
{[%clk 0:01:58.8]} 22... h6 {[%clk 0:00:37.1]} 23. Nf6+ {[%clk 0:01:48.9]} 23...
Nxf6 {[%clk 0:00:17.1]} 24. exf6 {[%clk 0:01:48.9]} 24... Qxa2 {[%clk 0:00:18]}
25. fxg7 {[%clk 0:01:36.4]} 25... Rfd8 {[%clk 0:00:18.3]} 26. Bxg6 {[%clk
0:01:30.8]} 26... Qxb2 {[%clk 0:00:15.9]} 27. Bxf7+ {[%clk 0:01:31]} 1-0

[Event "*** SCC Grand Prix: Titled Tuesday Blitz"]
[Site "Chess.com"]
[Date "2020.09.08"]
[Round "8"]
[White "GothamChess"]
[Black "Witik"]
[Result "0-1"]
[WhiteElo "2566"]
[BlackElo "2707"]
[TimeControl "180+1"]
[EndTime "11:34:41 PDT"]
[Termination "Witik won by resignation"]

1. e4 {[%clk 0:03:00.9]} 1... c6 {[%clk 0:02:59.2]} 2. d4 {[%clk 0:02:57.5]}
2... d5 {[%clk 0:02:59.2]} 3. e5 {[%clk 0:02:57.8]} 3... Bf5 {[%clk 0:02:59]} 4.
h4 {[%clk 0:02:57.8]} 4... Qb6 {[%clk 0:02:58.9]} 5. Nc3 {[%clk 0:02:56.2]} 5...
h6 {[%clk 0:02:58.7]} 6. g4 {[%clk 0:02:55.9]} 6... Bd7 {[%clk 0:02:58.4]} 7. a3
{[%clk 0:02:50.6]} 7... h5 {[%clk 0:02:55.5]} 8. gxh5 {[%clk 0:02:49.7]} 8...
Nh6 {[%clk 0:02:54.2]} 9. Bxh6 {[%clk 0:02:29.2]} 9... Rxh6 {[%clk 0:02:50.9]}
10. f4 {[%clk 0:02:24]} 10... e6 {[%clk 0:02:37.5]} 11. Na4 {[%clk 0:01:16.1]}
11... Qc7 {[%clk 0:02:21.2]} 12. b4 {[%clk 0:01:12.6]} 12... b6 {[%clk
0:01:50.1]} 13. c4 {[%clk 0:01:08.1]} 13... dxc4 {[%clk 0:01:48]} 14. Nf3 {[%clk
0:00:44.2]} 14... a5 {[%clk 0:01:46.2]} 15. bxa5 {[%clk 0:00:36.3]} 15... Rxa5
{[%clk 0:01:35.1]} 16. Be2 {[%clk 0:00:32]} 16... Qa7 {[%clk 0:01:28.2]} 17. Nb2
{[%clk 0:00:26.7]} 17... b5 {[%clk 0:01:26.2]} 18. Kf2 {[%clk 0:00:25.6]} 18...
Bxa3 {[%clk 0:01:24.8]} 19. Qc2 {[%clk 0:00:25]} 19... c5 {[%clk 0:01:20.7]} 20.
dxc5 {[%clk 0:00:19.9]} 20... Bxc5+ {[%clk 0:01:20.1]} 21. Kg2 {[%clk
0:00:18.6]} 21... Rxa1 {[%clk 0:01:19.9]} 0-1

[Event "*** SCC Grand Prix: Titled Tuesday Blitz"]
[Site "Chess.com"]
[Date "2020.09.08"]
[Round "8"]
[White "picturesquecheck"]
[Black "artichaud"]
[Result "1-0"]
[WhiteElo "2156"]
[BlackElo "2210"]
[TimeControl "180+1"]
[EndTime "11:34:41 PDT"]
[Termination "picturesquecheck won on time"]

1. e4 {[%clk 0:03:00.9]} 1... d6 {[%clk 0:01:11.5]} 2. d4 {[%clk 0:02:57.7]}
2... Nf6 {[%clk 0:01:11]} 3. Nc3 {[%clk 0:02:57.7]} 3... b6 {[%clk 0:01:10.3]}
4. f3 {[%clk 0:02:56.9]} 4... Nbd7 {[%clk 0:01:09.5]} 5. Be3 {[%clk 0:02:57]}
5... e5 {[%clk 0:01:08.4]} 6. Nge2 {[%clk 0:02:57.4]} 6... Be7 {[%clk
0:01:06.4]} 7. Qd2 {[%clk 0:02:56.2]} 7... O-O {[%clk 0:01:06]} 8. O-O-O {[%clk
0:02:55.6]} 8... c5 {[%clk 0:00:56.4]} 9. d5 {[%clk 0:02:55.1]} 9... a6 {[%clk
0:00:54]} 10. g4 {[%clk 0:02:55]} 10... b5 {[%clk 0:00:53.4]} 11. Ng3 {[%clk
0:02:54.8]} 11... Nb6 {[%clk 0:00:52.8]} 12. g5 {[%clk 0:02:49.8]} 12... Ne8
{[%clk 0:00:50.2]} 13. h4 {[%clk 0:02:49.8]} 13... b4 {[%clk 0:00:47.6]} 14. Nb1
{[%clk 0:02:48.9]} 14... a5 {[%clk 0:00:41.5]} 15. h5 {[%clk 0:02:48.1]} 15...
a4 {[%clk 0:00:27.4]} 16. Nf5 {[%clk 0:02:37.2]} 16... a3 {[%clk 0:00:21.3]} 17.
b3 {[%clk 0:02:36.4]} 17... Ba6 {[%clk 0:00:12.3]} 18. g6 {[%clk 0:02:32.2]}
18... fxg6 {[%clk 0:00:10.4]} 19. hxg6 {[%clk 0:02:31.7]} 19... hxg6 {[%clk
0:00:10.5]} 20. Nxg7 {[%clk 0:01:49.9]} 20... Nxg7 {[%clk 0:00:08.5]} 21. Qh2
{[%clk 0:01:46.6]} 21... Rxf3 {[%clk 0:00:06.8]} 22. Qh7+ {[%clk 0:01:44.2]}
22... Kf7 {[%clk 0:00:06.9]} 23. Bh3 {[%clk 0:01:42.5]} 23... Bc8 {[%clk
0:00:06.1]} 24. Be6+ {[%clk 0:01:40.8]} 1-0

[Event "*** SCC Grand Prix: Titled Tuesday Blitz"]
[Site "Chess.com"]
[Date "2020.09.08"]
[Round "8"]
[White "PawnEatingZombie"]
[Black "giantslayer83"]
[Result "0-1"]
[WhiteElo "2188"]
[BlackElo "2697"]
[TimeControl "180+1"]
[EndTime "11:34:46 PDT"]
[Termination "giantslayer83 won on time"]

1. d4 {[%clk 0:03:00.9]} 1... Nf6 {[%clk 0:02:59.5]} 2. c4 {[%clk 0:03:00.8]}
2... g6 {[%clk 0:03:00.1]} 3. Nc3 {[%clk 0:03:00.9]} 3... Bg7 {[%clk 0:03:00.8]}
4. e4 {[%clk 0:03:00.6]} 4... d6 {[%clk 0:03:01.5]} 5. Be2 {[%clk 0:03:01]} 5...
O-O {[%clk 0:03:02]} 6. Be3 {[%clk 0:03:00.8]} 6... Na6 {[%clk 0:02:58.9]} 7.
Nf3 {[%clk 0:02:59.8]} 7... e5 {[%clk 0:02:57.6]} 8. O-O {[%clk 0:02:58.9]} 8...
c6 {[%clk 0:02:47.8]} 9. dxe5 {[%clk 0:02:28.9]} 9... dxe5 {[%clk 0:02:46.7]}
10. c5 {[%clk 0:02:28.7]} 10... Nc7 {[%clk 0:02:46.1]} 11. h3 {[%clk 0:02:22.4]}
11... Nh5 {[%clk 0:02:40.7]} 12. Qc2 {[%clk 0:02:03.6]} 12... Nf4 {[%clk
0:02:40]} 13. Rfd1 {[%clk 0:01:57.1]} 13... Qf6 {[%clk 0:02:39.5]} 14. Nd2
{[%clk 0:01:36.5]} 14... Nce6 {[%clk 0:02:23]} 15. Bc4 {[%clk 0:01:09.6]} 15...
Nd4 {[%clk 0:02:17]} 16. Qa4 {[%clk 0:01:09.5]} 16... Bxh3 {[%clk 0:02:07.9]}
17. Bxf4 {[%clk 0:00:59.8]} 17... exf4 {[%clk 0:02:07.3]} 18. gxh3 {[%clk
0:00:58.7]} 18... f3 {[%clk 0:02:07.7]} 19. Bf1 {[%clk 0:00:53.2]} 19... Qf4
{[%clk 0:02:03]} 20. Nc4 {[%clk 0:00:26.4]} 20... b5 {[%clk 0:01:35.6]} 21. cxb6
{[%clk 0:00:23.2]} 21... axb6 {[%clk 0:01:35.9]} 22. Qb4 {[%clk 0:00:06.8]}
22... b5 {[%clk 0:01:36.3]} 23. Qd6 {[%clk 0:00:02.7]} 23... Qg5+ {[%clk
0:01:35.4]} 24. Qg3 {[%clk 0:00:02.4]} 24... Qxg3+ {[%clk 0:01:35.1]} 25. fxg3
{[%clk 0:00:02.6]} 25... bxc4 {[%clk 0:01:36]} 0-1

[Event "*** SCC Grand Prix: Titled Tuesday Blitz"]
[Site "Chess.com"]
[Date "2020.09.08"]
[Round "8"]
[White "AniJak"]
[Black "Yashasd1995"]
[Result "1-0"]
[WhiteElo "2370"]
[BlackElo "2634"]
[TimeControl "180+1"]
[EndTime "11:34:50 PDT"]
[Termination "AniJak won by resignation"]

1. e4 {[%clk 0:03:00.9]} 1... d5 {[%clk 0:03:00]} 2. exd5 {[%clk 0:03:00.2]}
2... Nf6 {[%clk 0:03:00.4]} 3. d4 {[%clk 0:02:59.8]} 3... Bg4 {[%clk 0:02:59.9]}
4. Be2 {[%clk 0:02:54.6]} 4... Bxe2 {[%clk 0:02:59.6]} 5. Nxe2 {[%clk
0:02:54.9]} 5... Qxd5 {[%clk 0:03:00.2]} 6. O-O {[%clk 0:02:54.7]} 6... Nc6
{[%clk 0:02:59.4]} 7. b3 {[%clk 0:02:50.6]} 7... e6 {[%clk 0:02:56.6]} 8. c4
{[%clk 0:02:50.5]} 8... Qf5 {[%clk 0:02:56.4]} 9. Nbc3 {[%clk 0:02:45.5]} 9...
O-O-O {[%clk 0:02:54.5]} 10. h3 {[%clk 0:02:39.3]} 10... g5 {[%clk 0:02:50.8]}
11. Ng3 {[%clk 0:02:35.3]} 11... Qg6 {[%clk 0:02:50.1]} 12. Be3 {[%clk
0:02:32.7]} 12... h5 {[%clk 0:02:48.6]} 13. d5 {[%clk 0:02:22.3]} 13... h4
{[%clk 0:02:44.2]} 14. Nge2 {[%clk 0:02:14.2]} 14... exd5 {[%clk 0:02:39.8]} 15.
cxd5 {[%clk 0:02:13.6]} 15... Nb4 {[%clk 0:02:37.9]} 16. Bxa7 {[%clk 0:02:11.8]}
16... Nfxd5 {[%clk 0:02:28.3]} 17. Nxd5 {[%clk 0:02:06.6]} 17... Rxd5 {[%clk
0:02:29.2]} 18. Qc1 {[%clk 0:02:02.8]} 18... Bg7 {[%clk 0:02:27.8]} 19. Rb1
{[%clk 0:01:46.3]} 19... Rhd8 {[%clk 0:02:23.2]} 20. Bc5 {[%clk 0:01:42.6]}
20... Nd3 {[%clk 0:02:22.7]} 21. Qa3 {[%clk 0:01:35.3]} 21... Nxc5 {[%clk
0:02:19.4]} 22. Nc3 {[%clk 0:01:33.5]} 22... Na6 {[%clk 0:02:08.3]} 23. Nxd5
{[%clk 0:01:32.2]} 23... Rxd5 {[%clk 0:02:09.2]} 24. Rfe1 {[%clk 0:01:25]} 24...
Rd8 {[%clk 0:02:08.1]} 25. Rbc1 {[%clk 0:01:22.3]} 25... Qd6 {[%clk 0:02:05.8]}
26. Qa5 {[%clk 0:01:17.9]} 26... Qd5 {[%clk 0:01:48.9]} 27. Qa4 {[%clk 0:01:09]}
27... Bf8 {[%clk 0:01:46.3]} 28. Qg4+ {[%clk 0:01:04.6]} 28... Kb8 {[%clk
0:01:43.3]} 29. Red1 {[%clk 0:01:04.2]} 29... f5 {[%clk 0:01:32.9]} 30. Rxd5
{[%clk 0:01:02.9]} 30... Rxd5 {[%clk 0:01:32.3]} 31. Qxg5 {[%clk 0:01:00]} 31...
Ka7 {[%clk 0:01:29]} 32. Qxh4 {[%clk 0:00:58.9]} 32... Bc5 {[%clk 0:01:28.1]}
33. Qc4 {[%clk 0:00:55.7]} 33... Rd2 {[%clk 0:01:27.5]} 34. Rf1 {[%clk
0:00:55.4]} 34... Rxa2 {[%clk 0:01:27.2]} 35. h4 {[%clk 0:00:55.5]} 35... Rd2
{[%clk 0:01:22.1]} 36. h5 {[%clk 0:00:55.2]} 36... Rd4 {[%clk 0:01:22.6]} 37.
Qc3 {[%clk 0:00:53.3]} 37... Rh4 {[%clk 0:01:21.7]} 38. Qf3 {[%clk 0:00:52.2]}
38... Nb4 {[%clk 0:01:19.9]} 39. Qxf5 {[%clk 0:00:51.3]} 39... Bd6 {[%clk
0:01:18]} 40. g3 {[%clk 0:00:50.4]} 40... Rf4 {[%clk 0:01:17]} 41. gxf4 {[%clk
0:00:50.1]} 1-0

[Event "*** SCC Grand Prix: Titled Tuesday Blitz"]
[Site "Chess.com"]
[Date "2020.09.08"]
[Round "8"]
[White "ClydeHillKid"]
[Black "Resignify"]
[Result "1-0"]
[WhiteElo "2338"]
[BlackElo "2218"]
[TimeControl "180+1"]
[EndTime "11:34:50 PDT"]
[Termination "ClydeHillKid won by checkmate"]

1. e4 {[%clk 0:03:00.9]} 1... c5 {[%clk 0:02:59.4]} 2. Nf3 {[%clk 0:03:00.7]}
2... Nc6 {[%clk 0:02:57.7]} 3. d4 {[%clk 0:03:00.8]} 3... cxd4 {[%clk
0:02:57.7]} 4. Nxd4 {[%clk 0:03:01.7]} 4... Nf6 {[%clk 0:02:57.7]} 5. Nc3 {[%clk
0:03:02]} 5... e5 {[%clk 0:02:58]} 6. Ndb5 {[%clk 0:03:01.7]} 6... d6 {[%clk
0:02:57.4]} 7. Bg5 {[%clk 0:03:02.3]} 7... a6 {[%clk 0:02:57.3]} 8. Bxf6 {[%clk
0:03:02.7]} 8... gxf6 {[%clk 0:02:56.4]} 9. Na3 {[%clk 0:03:01.9]} 9... b5
{[%clk 0:02:55.7]} 10. Nd5 {[%clk 0:03:01.4]} 10... f5 {[%clk 0:02:49.3]} 11.
Bd3 {[%clk 0:02:59.6]} 11... f4 {[%clk 0:02:36.5]} 12. c3 {[%clk 0:02:54.5]}
12... Be6 {[%clk 0:02:26.9]} 13. Nc2 {[%clk 0:02:53.8]} 13... Bg7 {[%clk
0:02:06.6]} 14. a4 {[%clk 0:02:52.7]} 14... bxa4 {[%clk 0:01:57.5]} 15. Rxa4
{[%clk 0:02:30.7]} 15... a5 {[%clk 0:01:52.1]} 16. Bb5 {[%clk 0:02:27.5]} 16...
Bd7 {[%clk 0:01:49]} 17. Rc4 {[%clk 0:02:22.9]} 17... Rc8 {[%clk 0:01:42.4]} 18.
Bxc6 {[%clk 0:02:12.5]} 18... Rxc6 {[%clk 0:01:26.6]} 19. Rxc6 {[%clk
0:02:11.3]} 19... Bxc6 {[%clk 0:01:26.3]} 20. Qg4 {[%clk 0:02:06.2]} 20... O-O
{[%clk 0:01:15.4]} 21. c4 {[%clk 0:01:41.6]} 21... Bxd5 {[%clk 0:01:03]} 22.
cxd5 {[%clk 0:01:33.8]} 22... Qb6 {[%clk 0:01:02.5]} 23. O-O {[%clk 0:01:28]}
23... Qxb2 {[%clk 0:01:00.7]} 24. Ne1 {[%clk 0:01:27.6]} 24... a4 {[%clk
0:00:18.5]} 25. Nf3 {[%clk 0:01:27.1]} 25... a3 {[%clk 0:00:16.5]} 26. Nh4
{[%clk 0:01:27]} 26... Kh8 {[%clk 0:00:09.7]} 27. Nf5 {[%clk 0:01:26.8]} 27...
Rg8 {[%clk 0:00:09.1]} 28. Nxd6 {[%clk 0:01:26.4]} 28... a2 {[%clk 0:00:08.3]}
29. Nxf7# {[%clk 0:01:26.2]} 1-0

[Event "*** SCC Grand Prix: Titled Tuesday Blitz"]
[Site "Chess.com"]
[Date "2020.09.08"]
[Round "8"]
[White "ARTHURMOTIVATOR"]
[Black "el-roedor"]
[Result "1-0"]
[WhiteElo "2381"]
[BlackElo "2546"]
[TimeControl "180+1"]
[EndTime "11:34:51 PDT"]
[Termination "ARTHURMOTIVATOR won by checkmate"]

1. e4 {[%clk 0:03:00.9]} 1... c5 {[%clk 0:02:59.8]} 2. b3 {[%clk 0:03:00]} 2...
g6 {[%clk 0:02:57]} 3. Bb2 {[%clk 0:02:57]} 3... Nf6 {[%clk 0:02:57]} 4. e5
{[%clk 0:02:56.1]} 4... Nd5 {[%clk 0:02:56.7]} 5. Nf3 {[%clk 0:02:53.4]} 5...
Bg7 {[%clk 0:02:54.8]} 6. d4 {[%clk 0:02:53.9]} 6... cxd4 {[%clk 0:02:51.7]} 7.
Qxd4 {[%clk 0:02:52.7]} 7... Nc7 {[%clk 0:02:39.7]} 8. Nbd2 {[%clk 0:02:35.9]}
8... Nc6 {[%clk 0:02:38]} 9. Qe4 {[%clk 0:02:32.4]} 9... d5 {[%clk 0:02:26.2]}
10. Qe2 {[%clk 0:02:27.7]} 10... b6 {[%clk 0:01:56.1]} 11. O-O-O {[%clk
0:02:21.9]} 11... e6 {[%clk 0:01:51.6]} 12. h4 {[%clk 0:02:17.2]} 12... h5
{[%clk 0:01:46.7]} 13. Ng5 {[%clk 0:02:14.7]} 13... Ba6 {[%clk 0:01:37]} 14. Qf3
{[%clk 0:02:13.8]} 14... Qd7 {[%clk 0:01:35.6]} 15. Bxa6 {[%clk 0:02:09.5]}
15... Nxa6 {[%clk 0:01:35.1]} 16. Nc4 {[%clk 0:01:57.7]} 16... O-O {[%clk
0:01:26.2]} 17. g4 {[%clk 0:01:56.9]} 17... hxg4 {[%clk 0:01:04.1]} 18. Qxg4
{[%clk 0:01:56.8]} 18... Qe7 {[%clk 0:01:04.4]} 19. h5 {[%clk 0:01:36]} 19...
dxc4 {[%clk 0:00:30.8]} 20. hxg6 {[%clk 0:01:35]} 20... f5 {[%clk 0:00:19.5]}
21. Qh5 {[%clk 0:01:23.6]} 21... Bxe5 {[%clk 0:00:18.5]} 22. Bxe5 {[%clk
0:01:15.3]} 22... Nxe5 {[%clk 0:00:13.3]} 23. Qh8# {[%clk 0:01:12.8]} 1-0